Cogmind - Beta 15 @@@ ROGUE MODE // 2025.05.26 @ 18:59:22 // Winter2022/Polymind Player: Figgis Result: Self-destructed Performance ------------- Evolutions (4) 2000 Regions Visited (9) 1800 Robots Destroyed (41) 205 Value Destroyed (1067) 1067 Prototype IDs (3) 60 Alien Tech Used (0) 0 Bonus (5113) 5113 TOTAL SCORE: 10235 Bonus ------- Polymind Skill 4250 Follower Combat Kills 63 Registered with UFD 300 Met Optimus in HQ 500 Cogmind --------- Core Integrity 836/850 Matter 0/0 Energy 235/235 System Corruption 1% Temperature Cool (0) Movement Hovering (80) Location -6/Factory Parts ------- > --- POWER (1) -------- Heavy Deuterium Engine > --- PROPULSION (1) --- Combat Antigrav System > --- UTILITY (22) ----- Advanced Launcher Guidance Computer Improved Target Analyzer Experimental Core Analyzer Improved Armor Integrity Analyzer EX Chip 1 EX Chip 1 EX Chip 1 EX Chip 1 EX Chip 1 EX Chip 1 EX Chip 2 EX Chip 2 EX Chip 2 EX Chip 2 > --- WEAPON (2) ------- (None) > --- INVENTORY (2) ---- Deploy-a-Sentry Peak State ------------ > --- POWER ------------ Heavy Deuterium Engine > --- PROPULSION ------- Combat Antigrav System > --- UTILITY ---------- Advanced Launcher Guidance Computer Improved Target Analyzer Experimental Core Analyzer Improved Armor Integrity Analyzer EX Chip 1 EX Chip 1 EX Chip 1 EX Chip 1 EX Chip 1 EX Chip 1 EX Chip 1 EX Chip 1 EX Chip 1 EX Chip 1 EX Chip 2 EX Chip 2 EX Chip 2 EX Chip 2 EX Chip 2 EX Chip 2 EX Chip 2 EX Chip 2 > --- WEAPON ----------- AWS/EX-DEC > --- INVENTORY -------- Deploy-a-Sentry [Rating: 99] Favorites ----------- Power Heavy Deuterium Engine Engine Heavy Deuterium Engine Power Core Light Nuclear Core Propulsion Combat Antigrav System Leg Aluminum Leg Hover Unit Combat Antigrav System Utility EX Chip 1 Device Improved Heat Sink Processor Advanced Launcher Guidance Computer Hackware EX Chip 1 Weapon AWS/EX-DEC Energy Gun AWS/EX-DEC Build | -11 -10 -10 -10 -9 -8 -8 -8 -8 -6 ------- Run | Yrd Mat Min Exi Min Mat Sto Rec Scr Fac Slots Evolved . | . . . . . . . . . . Power . | . . . . . . . . . . Propulsion . | . . . . . . . . . . Utility . | . . . . . . . . . . Weapon . | . . . . . . . . . . Parts Attached . | . . . . . . . . . . Power . | . . . . . . . . . . Engine . | . . . . . . . . . . Core . | . . . . . . . . . . Reactor . | . . . . . . . . . . Propulsion . | . . . . . . . . . . Treads . | . . . . . . . . . . Leg . | . . . . . . . . . . Wheel . | . . . . . . . . . . Hover . | . . . . . . . . . . Flight . | . . . . . . . . . . Utility . | . . . . . . . . . . Device . | . . . . . . . . . . Storage . | . . . . . . . . . . Processor . | . . . . . . . . . . Hackware . | . . . . . . . . . . Protection . | . . . . . . . . . . Artifact . | . . . . . . . . . . Weapon . | . . . . . . . . . . Energy Gun . | . . . . . . . . . . Energy Cannon . | . . . . . . . . . . Ballistic Gun . | . . . . . . . . . . Ballistic Cannon . | . . . . . . . . . . Launcher . | . . . . . . . . . . Special Weapon . | . . . . . . . . . . Impact Weapon . | . . . . . . . . . . Slashing Weapon . | . . . . . . . . . . Piercing Weapon . | . . . . . . . . . . Special Melee Weapon . | . . . . . . . . . . Unidentified Prototypes . | . . . . . . . . . . Parts Lost 10 | . . 1 . . . 3 . . 6 Power . | . . . . . . . . . . Propulsion . | . . . . . . . . . . Utility 9 | . . 1 . . . 3 . . 5 Weapon 1 | . . . . . . . . . 1 Highest Loss Streak 6 | . . 1 . . . 1 . . 6 To Critical Strikes . | . . . . . . . . . . Average Backups . | . . . . . . . . . . Power . | . . . . . . . . . . Propulsion . | . . . . . . . . . . Utility . | . . . . . . . . . . Weapon . | . . . . . . . . . . Tool/Special . | . . . . . . . . . . Unused Backups . | . . . . . . . . . . Power . | . . . . . . . . . . Propulsion . | . . . . . . . . . . Utility . | . . . . . . . . . . Weapon . | . . . . . . . . . . Tool/Special . | . . . . . . . . . . Average Slot Usage (%) 73 | . 54 55 36 96 96 89 84 84 84 Engine 1 | . . . 1 3 3 3 3 3 3 Leg 6 | . 20 19 . . . . . . . Hover 1 | . . . 1 3 3 3 3 3 3 Device 4 | . 12 15 . . . . . . . Processor 9 | . . . 5 15 15 15 15 15 15 Hackware 38 | . . . 25 69 69 62 57 57 57 Energy Gun 7 | . 12 19 1 3 3 3 3 3 3 Peak Build Rating 99 | . 10 6 99 99 99 99 93 93 93 Average Rating 61 | . 5 5 38 99 99 95 93 93 90 On Entrance 58 | . . 6 . 99 99 99 93 93 93 Naked Turns 175 | . 76 8 91 . . . . . . Heaviest Build 21 | . 9 4 21 21 21 21 21 21 21 Greatest Support 21 | 3 20 10 21 21 21 21 21 21 21 Greatest Overweight (x) . | . . . . . . . . . . Average Overweight (x) . | . . . . . . . . . . Largest Inventory Capacity 2 | . 1 1 2 2 2 2 2 2 2 Average Capacity 1 | . . . . 2 2 2 2 2 2 Most Carried 1 | . 1 1 1 1 1 1 1 1 1 Average Carried . | . . . . 1 1 1 1 1 1 Final Capacity 2 | . 1 . 2 2 2 2 2 2 2 Final Carried 1 | . 1 . 1 1 1 1 1 1 1 Class Distribution -------------------- 63% | Assembler 29% | Grunt 6% | Cogmind Dominant Class ---------------- Grunt | -10/Materials Grunt | -10/Mines Cogmind | -10/Exiles Assembler | -9/Mines Assembler | -8/Materials Assembler | -8/Storage Assembler | -8/Recycling Assembler | -8/Scraptown Assembler | -6/Factory Resources | -11 -10 -10 -10 -9 -8 -8 -8 -8 -6 ----------- Run | Yrd Mat Min Exi Min Mat Sto Rec Scr Fac Matter Collected . | . . . . . . . . . . Remotely . | . . . . . . . . . . Salvage Created 1176 | . 57 103 . 18 88 713 81 . 116 Parts 71 | . 1 6 . 3 17 38 4 . 2 Haulers Intercepted . | . . . . . . . . . . Recyclers Shooed . | . . . . . . . . . . Parts Field Recycled . | . . . . . . . . . . Retrieved Matter . | . . . . . . . . . . Parts Self-Destructed . | . . . . . . . . . . Prevented . | . . . . . . . . . . Kills | -11 -10 -10 -10 -9 -8 -8 -8 -8 -6 ------- Run | Yrd Mat Min Exi Min Mat Sto Rec Scr Fac Combat Hostiles Destroyed 36 | . 1 6 . 3 4 18 1 . 3 Guns 35 | . 1 6 . 3 4 17 1 . 3 Classes Destroyed 8 | . 1 1 . . 2 3 1 . . Worker 1 | . . . . . . 1 . . . Recycler 1 | . . . . . 1 . . . . Operator 1 | . . . . . . 1 . . . Watcher 1 | . . . . . . 1 . . . Swarmer 19 | . . 4 . 3 2 7 . . 3 Grunt 10 | . 1 2 . . 1 6 . . . Brawler 1 | . . . . . . . 1 . . Sentry 7 | . . . . . 2 5 . . . Best Kill Streak 8 | . 1 2 . 3 4 8 1 . 3 Combat Bots Only 7 | . 1 2 . 3 3 7 1 . 3 Max Kills in Single Turn 1 | . 1 1 . 1 1 1 1 . 1 Gunslinging . | . . . . . . . . . . Exploded . | . . . . . . . . . . Melee . | . . . . . . . . . . Uniques/NPCs Destroyed . | . . . . . . . . . . Combat | -11 -10 -10 -10 -9 -8 -8 -8 -8 -6 -------- Run | Yrd Mat Min Exi Min Mat Sto Rec Scr Fac Hostile Shots Fired 93 | . 6 18 . 1 10 50 . . 8 Missed 34 | . . 8 . . 4 19 . . 3 Hits 59 | . 6 10 . 1 6 31 . . 5 Projectile 59 | . 6 10 . 1 6 31 . . 5 Critical Strikes 2 | . . . . . . 1 . . 1 Damage Taken 672 | . 69 109 . 6 65 347 . . 76 Core 188 | . 26 24 . 6 22 96 . . 14 Absorbed by Shields . | . . . . . . . . . . Regen/Repaired (Parts) 9 | . . . . . . . . 9 . Core Remaining (%) 85 | 100 . . . 77 . . . 78 . Volleys Fired 23 | . 5 18 . . . . . . . Largest 1 | . 1 1 . . . . . . . Hottest 65 | . 65 65 . . . . . . . Shots Fired 105 | . 5 18 . 3 11 59 1 . 8 Gun 105 | . 5 18 . 3 11 59 1 . 8 Cannon . | . . . . . . . . . . Launcher . | . . . . . . . . . . Special . | . . . . . . . . . . Kinetic . | . . . . . . . . . . Thermal 23 | . 5 18 . . . . . . . Explosive . | . . . . . . . . . . Electromagnetic 82 | . . . . 3 11 59 1 . 8 Robot Hit Streak 18 | . 4 7 . 3 5 18 1 . 3 Robot Miss Streak 4 | . 1 3 . 1 3 4 2 . 2 Penetration Max . | . . . . . . . . . . Secondary Targets . | . . . . . . . . . . Autonomous 82 | . . . . 3 11 59 1 . 8 Shots Hit Robots 87 | . 4 11 . 3 10 52 1 . 6 Core Hits 61 | . 2 8 . 3 8 34 1 . 5 Critical Kills . | . . . . . . . . . . Critical Parts Destroyed . | . . . . . . . . . . Critical Strikes 11 | . . . . 1 . 9 . . 1 Corrupt 11 | . . . . 1 . 9 . . 1 Melee Attacks . | . . . . . . . . . . Impact . | . . . . . . . . . . Slashing . | . . . . . . . . . . Piercing . | . . . . . . . . . . Sneak Attacks . | . . . . . . . . . . Combat Hostiles . | . . . . . . . . . . Follow-up Attacks . | . . . . . . . . . . Damage Inflicted 2165 | . 63 202 . 59 237 1443 19 . 142 Guns 2069 | . 63 197 . 59 237 1364 19 . 130 Cannons . | . . . . . . . . . . Explosions 79 | . . . . . . 79 . . . Melee . | . . . . . . . . . . Ramming 17 | . . 5 . . . . . . 12 Kinetic . | . . . . . . . . . . Thermal 339 | . 63 197 . . . 79 . . . Explosive . | . . . . . . . . . . Electromagnetic 1809 | . . . . 59 237 1364 19 . 130 Impact . | . . . . . . . . . . Slashing . | . . . . . . . . . . Piercing . | . . . . . . . . . . Highest Corruption 1 | . . . . . . . . . 1 Average Corruption 1 | . . . . . . . . . 1 Corruption Purged . | . . . . . . . . . . Corruption Blocked . | . . . . . . . . . . Overload Shots . | . . . . . . . . . . Overflow Damage . | . . . . . . . . . . Projectiles . | . . . . . . . . . . Explosions . | . . . . . . . . . . Melee . | . . . . . . . . . . Knockbacks 1 | . . 1 . . . . . . . Impact 1 | . . 1 . . . . . . . Kinetic . | . . . . . . . . . . Secondary . | . . . . . . . . . . Self-Inflicted Damage 6 | . . . . . . . . . 6 Shots . | . . . . . . . . . . Rammed 4 | . . . . . . . . . 4 Targets Rammed 6 | . . 2 . . . . . . 4 Kicked 2 | . . 2 . . . . . . . Crushed . | . . . . . . . . . . Highest Temperature 24 | . 21 24 . . . 15 . . . Average Temperature 9 | . 12 9 . . . 4 . . . Received Heat Transfer 192 | . 39 45 . . 9 99 . . . Siege Activations . | . . . . . . . . . . Martial Activations . | . . . . . . . . . . Shielding Activations . | . . . . . . . . . . Robots Disrupted . | . . . . . . . . . . Combat Hostiles . | . . . . . . . . . . Robots Corrupted 1 | . . . . . . 1 . . . Combat Hostiles 1 | . . . . . . 1 . . . Parts Fried 8 | . . . . . 1 7 . . . Impact Corruptions . | . . . . . . . . . . Robots Melted . | . . . . . . . . . . Combat Hostiles . | . . . . . . . . . . Parts Melted 3 | . 2 1 . . . . . . . Heat Transferred 692 | . 148 444 . . . 100 . . . Parts Sabotaged . | . . . . . . . . . . Parts Stolen . | . . . . . . . . . . Parts Stripped . | . . . . . . . . . . Power Chain Reactions 1 | . . . . . . 1 . . . Alert | -11 -10 -10 -10 -9 -8 -8 -8 -8 -6 ------- Run | Yrd Mat Min Exi Min Mat Sto Rec Scr Fac Maximum Alert Level 1 | . . . . . . 1 . . . Low Security (%) 88 | 100 100 100 . 100 100 47 100 . 100 Level 1 11 | . . . . . . 52 . . . Level 2 . | . . . . . . . . . . Level 3 . | . . . . . . . . . . Level 4 . | . . . . . . . . . . Level 5 . | . . . . . . . . . . High Security . | . . . . . . . . . . Max Security . | . . . . . . . . . . Peak Influence 375 | . 20 108 . 93 156 375 146 . 70 Initial 136 | . . . . . 27 35 136 . . Average 82 | . 1 25 . 42 92 227 132 . 9 Influence Increases 1196 | . 20 249 . 93 179 550 35 . 70 Destroy 0b10 Robot/C 820 | . 20 180 . 60 120 360 20 . 60 Destroy 0b10 Robot/NC 20 | . . . . . 5 15 . . . Destroy Leader 162 | . . 30 . 10 30 82 . . 10 Allied During Kill 41 | . . 24 . 8 9 . . . . Disable Machine 45 | . . . . 15 15 15 . . . Destroy Structure 3 | . . . . . . 3 . . . Partial Spotted 15 | . . . . . . 15 . . . Lose Combat Pursuer 90 | . . 15 . . . 60 15 . . Influence Decreases 1186 | . 20 175 74 20 166 286 254 131 60 Entered New Map 516 | . . . 74 . 46 51 214 131 . Time Decay 525 | . 20 165 . 20 100 180 40 . . Lost Part 90 | . . 10 . . . 20 . . 60 Lost Ally 20 | . . . . . 20 . . . . Purge Threat 35 | . . . . . . 35 . . . Squads Dispatched 2 | . 1 . . . . 1 . . . Investigation 1 | . . . . . . 1 . . . Extermination . | . . . . . . . . . . Reinforcement 1 | . 1 . . . . . . . . Assault . | . . . . . . . . . . Garrison . | . . . . . . . . . . Intercept . | . . . . . . . . . . Searches Triggered . | . . . . . . . . . . Construction Impeded . | . . . . . . . . . . Haulers Reinforced . | . . . . . . . . . . Active Scanning Responses . | . . . . . . . . . . Cargo Convoy Interrupts . | . . . . . . . . . . Stealth | -11 -10 -10 -10 -9 -8 -8 -8 -8 -6 --------- Run | Yrd Mat Min Exi Min Mat Sto Rec Scr Fac Distress Signals 1 | . 1 . . . . . . . . Communications Jammed . | . . . . . . . . . . Distress Signals . | . . . . . . . . . . Times Spotted 56 | . 8 9 . 3 6 23 3 . 4 Peak Tracking Total 6 | . 4 3 . 3 5 6 2 . 4 Tactical Retreats 5 | . . 1 . . . 3 1 . . Traps | -11 -10 -10 -10 -9 -8 -8 -8 -8 -6 ------- Run | Yrd Mat Min Exi Min Mat Sto Rec Scr Fac Traps Triggered 3 | . 1 . . . . 2 . . . Indirectly . | . . . . . . . . . . Trap Hack Attempts . | . . . . . . . . . . Triggered . | . . . . . . . . . . Disarmed . | . . . . . . . . . . Reprogrammed . | . . . . . . . . . . Reused . | . . . . . . . . . . Traps Extracted . | . . . . . . . . . . Installed . | . . . . . . . . . . Triggered . | . . . . . . . . . . Machines | -11 -10 -10 -10 -9 -8 -8 -8 -8 -6 ---------- Run | Yrd Mat Min Exi Min Mat Sto Rec Scr Fac Machines Disabled 3 | . . . . 1 1 1 . . . Max in Single Turn 1 | . . . . 1 1 1 . . . Machines Repaired . | . . . . . . . . . . Machines Dismantled . | . . . . . . . . . . Machines Sabotaged . | . . . . . . . . . . Overloaded Fab Kills . | . . . . . . . . . . Hacking | -11 -10 -10 -10 -9 -8 -8 -8 -8 -6 --------- Run | Yrd Mat Min Exi Min Mat Sto Rec Scr Fac Machines Accessed 12 | . 1 . . . 1 3 2 4 1 Terminals 6 | . 1 . . . 1 3 . . 1 Fabricators . | . . . . . . . . . . Repair Stations . | . . . . . . . . . . Recycling Units . | . . . . . . . . . . Scanalyzers . | . . . . . . . . . . Garrison Access . | . . . . . . . . . . Total Hacks 90 | . 1 . . . 11 12 24 34 8 Successful 83 | . 1 . . . 7 10 24 34 7 Failed 5 | . . . . . 3 1 . . 1 Catastrophic . | . . . . . . . . . . Database Lockouts 2 | . . . . . 1 1 . . . Manual 29 | . . . . . 11 8 . . 10 Terminals 32 | . 1 . . . 11 12 . . 8 Fabricators . | . . . . . . . . . . Repair Stations . | . . . . . . . . . . Recycling Units . | . . . . . . . . . . Scanalyzers . | . . . . . . . . . . Garrison Access . | . . . . . . . . . . Terminal Hacks 83 | . 1 . . . 7 10 24 34 7 Record 58 | . . . . . . . 24 34 . Robot Analysis 6 | . . . . . 3 1 . . 2 Open Door 1 | . . . . . . 1 . . . Level Access Points 2 | . . . . . 2 . . . . Branch Access Points 2 | . . . . . 1 1 . . . Emergency Access Points 2 | . . . . . . 1 . . 1 Machine Index 4 | . . . . . 1 2 . . 1 Alert Level 1 | . . . . . . 1 . . . Unreport Threat 3 | . . . . . . 2 . . 1 Locate Traps 2 | . . . . . . 1 . . 1 Zone Layout 2 | . 1 . . . . . . . 1 Fabricator Hacks . | . . . . . . . . . . Repair Station Hacks . | . . . . . . . . . . Recycling Unit Hacks . | . . . . . . . . . . Scanalyzer . | . . . . . . . . . . Garrison Access Hacks . | . . . . . . . . . . Unauthorized Hacks . | . . . . . . . . . . Terminals . | . . . . . . . . . . Fabricators . | . . . . . . . . . . Repair Stations . | . . . . . . . . . . Recycling Units . | . . . . . . . . . . Scanalyzers . | . . . . . . . . . . Garrison Access . | . . . . . . . . . . Data Cores Recovered 1 | . . . . . . 1 . . . Used . | . . . . . . . . . . Hacking Detections 2 | . . . . . . 1 . . 1 Full Trace Events . | . . . . . . . . . . Feedback Events . | . . . . . . . . . . Feedback Blocked . | . . . . . . . . . . Robot Schematics Acquired . | . . . . . . . . . . Robots Built . | . . . . . . . . . . Authchips . | . . . . . . . . . . Time . | . . . . . . . . . . Total Robot Build Rating . | . . . . . . . . . . Part Schematics Acquired . | . . . . . . . . . . Parts Built . | . . . . . . . . . . Authchips . | . . . . . . . . . . Time . | . . . . . . . . . . Total Part Build Rating . | . . . . . . . . . . Parts Repaired . | . . . . . . . . . . Time . | . . . . . . . . . . Parts Recycled . | . . . . . . . . . . Recycled Matter . | . . . . . . . . . . Retrieved Matter . | . . . . . . . . . . Retrieved Components . | . . . . . . . . . . Parts Scanalyzed . | . . . . . . . . . . Part Schematics Acquired . | . . . . . . . . . . Parts Damaged . | . . . . . . . . . . Bothacking | -11 -10 -10 -10 -9 -8 -8 -8 -8 -6 ------------ Run | Yrd Mat Min Exi Min Mat Sto Rec Scr Fac Used RIF Installer . | . . . . . . . . . . Robots Hacked 1 | . 1 . . . . . . . . Non-combat . | . . . . . . . . . . Combat 1 | . 1 . . . . . . . . Robot Hacks Applied 1 | . 1 . . . . . . . . find_shortcuts 1 | . 1 . . . . . . . . Relay Couplers Released . | . . . . . . . . . . Fabnet Peak Effective % . | . . . . . . . . . . Robots Rewired . | . . . . . . . . . . Allies Hacked . | . . . . . . . . . . Hacks Repelled . | . . . . . . . . . . Allies | -11 -10 -10 -10 -9 -8 -8 -8 -8 -6 -------- Run | Yrd Mat Min Exi Min Mat Sto Rec Scr Fac Total Allies 3 | . . 3 . . . . . . . Largest Group 3 | . . 3 2 2 2 . . . . Highest-Rated Group 40 | . . 40 32 32 32 . . . . Highest-Rated Ally 16 | . . 16 16 16 16 . . . . Total Orders . | . . . . . . . . . . Ally Attacks 24 | . . 15 . . 9 . . . . Total Damage 216 | . . 158 . . 58 . . . . Kills 5 | . . 3 . . 2 . . . . Allies Corrupted . | . . . . . . . . . . Allies Melted . | . . . . . . . . . . Intel | -11 -10 -10 -10 -9 -8 -8 -8 -8 -6 ------- Run | Yrd Mat Min Exi Min Mat Sto Rec Scr Fac Active Infowar (turns) . | . . . . . . . . . . Robot Analysis Total 7 | . 1 . . . 3 1 . . 2 Derelict Logs Recovered 2 | . . 1 . 1 . . . . . Drone Launches . | . . . . . . . . . . Drone Recoveries . | . . . . . . . . . . Exploration | -11 -10 -10 -10 -9 -8 -8 -8 -8 -6 ------------- Run | Yrd Mat Min Exi Min Mat Sto Rec Scr Fac Turns Passed 2705 | 10 217 675 149 96 203 394 96 814 51 Spaces Moved 2830 | 19 233 522 226 105 234 409 120 913 49 Core 339 | 19 131 8 181 . . . . . . Treads . | . . . . . . . . . . Legs 616 | . 102 514 . . . . . . . Wheels . | . . . . . . . . . . Hover 1875 | . . . 45 105 234 409 120 913 49 Flight . | . . . . . . . . . . Fastest Speed 50 | 50 50 50 50 80 80 80 80 80 80 Average Speed 85 | 50 80 118 55 80 80 80 80 80 80 Slowest Speed 120 | 50 120 120 80 80 80 80 80 80 80 Overloaded Moves . | . . . . . . . . . . Propulsion Burnouts . | . . . . . . . . . . Robots Hopped . | . . . . . . . . . . Potential Cave-ins . | . . . . . . . . . . Cave-ins Triggered . | . . . . . . . . . . Exploration Rate (%) 43 | 3 52 97 65 19 24 63 28 80 1 Regions Visited 9 Branch Regions 6 Pre-discovered Areas 1 | . . 1 . . . . . . . Known Exits Taken 2 | . . . . . 1 1 . . . Unknown Exits Taken 7 | 1 1 1 1 1 . . 1 1 . Scrap Searched 2 | . . 1 . 1 . . . . . Spaces Dug . | . . . . . . . . . . Terrain Destroyed 3 | . . . . . . 3 . . . Melee . | . . . . . . . . . . Projectile . | . . . . . . . . . . AOE 3 | . . . . . . 3 . . . Terrain Rammed . | . . . . . . . . . . Walls Destroyed . | . . . . . . . . . . Machines Disabled . | . . . . . . . . . . Actions | -11 -10 -10 -10 -9 -8 -8 -8 -8 -6 --------- Run | Yrd Mat Min Exi Min Mat Sto Rec Scr Fac Total 3095 | 18 257 557 248 116 249 475 119 996 60 Wait 231 | . 19 16 23 12 16 54 . 84 7 Move 2821 | 18 232 521 225 104 233 408 119 912 49 Hop . | . . . . . . . . . . Pick Up 1 | . 1 . . . . . . . . Fast Attach . | . . . . . . . . . . Attach . | . . . . . . . . . . Detach . | . . . . . . . . . . Swap . | . . . . . . . . . . Drop . | . . . . . . . . . . Fire 23 | . 5 18 . . . . . . . Melee . | . . . . . . . . . . Ram 4 | . . . . . . . . . 4 Kick 2 | . . 2 . . . . . . . Crush . | . . . . . . . . . . Escape Stasis 13 | . . . . . . 13 . . . Rewire . | . . . . . . . . . . Trap . | . . . . . . . . . . Miscellaneous . | . . . . . . . . . . Route ------- -11/Scrapyard -10/Materials (discovered 3 exits: [*Mat] / [*Min x2]) -10/Mines (discovered 3 exits: [*Mat x2] / [*Exi]) -10/Exiles -9/Mines -8/Materials (discovered 5 exits: Fac x3 / *Sto x2) -8/Storage (discovered 2 exits: *Fac / *Rec) -8/Recycling -8/Scraptown (discovered 2 exits: *Fac x2) -6/Factory History --------- Turn | Location | Event 4 | -11/Scrapyard | Discovered new exit (range 13) 11 | -11/Scrapyard | Entered Materials 11 | -10/Materials | Discovered new exit (range 14) 61 | -10/Materials | Discovered new exit (range 5) 181 | -10/Materials | Discovered new exit (range 7) 228 | -10/Materials | Entered Mines 229 | -10/Mines | Learned location of Storage (-8) 304 | -10/Mines | Assisted by bots powering up and referring to "LRC-V3" 316 | -10/Mines | Deemed a non-threat by the Exiles lab entrance 316 | -10/Mines | Discovered new exit (range 5) 491 | -10/Mines | Discovered new exit (range 16) 670 | -10/Mines | Discovered new exit (range 6) 784 | -10/Mines | Learned location of 1 exit from Materials 903 | -10/Mines | Entered Exiles 903 | -10/Exiles | Accompanied by 2 allies 916 | -10/Exiles | Met 8R-AWN 925 | -10/Exiles | Met EX-HEX 941 | -10/Exiles | Met EX-BIN 978 | -10/Exiles | Met EX-DEC 994 | -10/Exiles | Took control of EX-DEC (ally) 1020 | -10/Exiles | Discovered new exit (range 14) 1052 | -10/Exiles | Left Exiles lab with Deploy-a-Sentry 1052 | -10/Exiles | Entered Mines 1052 | -9/Mines | Accompanied by 2 allies 1054 | -9/Mines | Met a Derelict bent on vengeance 1080 | -9/Mines | Learned Materials trap positions 1092 | -9/Mines | Discovered new exit (range 11) 1148 | -9/Mines | Entered Materials 1148 | -8/Materials | Accompanied by 2 allies 1149 | -8/Materials | Identified exit to Factory 1150 | -8/Materials | Loaded intel: 16 trap records 1301 | -8/Materials | Central database locked down 1301 | -8/Materials | Identified exit to Storage 1351 | -8/Materials | Entered Storage 1370 | -8/Storage | Central database locked down 1415 | -8/Storage | Identified exit to Recycling 1431 | -8/Storage | Destroyed 7 combat bots 1576 | -8/Storage | Destroyed 7 combat bots 1653 | -8/Storage | Discovered exit to Factory (range 13) 1743 | -8/Storage | Used back door to open Recycling access 1745 | -8/Storage | Entered Recycling 1746 | -8/Recycling | Met a Zionite searching for Scraptown 1821 | -8/Recycling | Scanned before Scraplab entrance 1832 | -8/Recycling | Entered Scraplab 1839 | -8/Recycling | Discovered new exit (range 3) 1841 | -8/Recycling | Entered Scraptown 1905 | -8/Scraptown | Received an X-ray algorithm 1921 | -8/Scraptown | Visited UFD Registry 1930 | -8/Scraptown | Visited Fellowship of the Rings 1950 | -8/Scraptown | Visited CR-KLE's Repair Center 1955 | -8/Scraptown | CR-KLE repaired 1 part 1978 | -8/Scraptown | Visited TADAMA 2028 | -8/Scraptown | Discovered new exit (range 13) 2242 | -8/Scraptown | Visited Awakened 2264 | -8/Scraptown | Visited Red Mages 2305 | -8/Scraptown | Registered with UFD as "Fibercase" 2334 | -8/Scraptown | Visited Junk Repository 2350 | -8/Scraptown | Visited Scrapoid Pod Storage 2462 | -8/Scraptown | Visited Chapter 10 2502 | -8/Scraptown | Met Optimus 2502 | -8/Scraptown | Accepted into 0bPrime 2568 | -8/Scraptown | Discovered new exit (range 3) 2655 | -8/Scraptown | Entered Factory 2706 | -6/Factory | Self-destructed Last Messages --------------- slightly improved slashing force. Like other L-series robots, the L-41 is only dispatched in coordination with grunts. Like other L-series robots, the L-41's armor structure is reinforced against the slashes of melee damage, as well as piercing attacks. 02676_ Connecting with Terminal... >>Access(Emergency) No emergency access doors found in local area. 02689_ ALERT: All DSF locations entering lockdown mode. 02695_ S-27 Virus destroyed. 02701_ AWS/EX-DEC destroyed. 02702_ Slammed into S-27 Virus. 02703_ EX Chip 1 destroyed. 02703_ Destabilizing: System corrupted (+1). 02704_ Slammed into S-27 Virus. 02704_ EX Chip 2 destroyed. 02704_ EX Chip 1 destroyed. 02704_ Destabilizing: System interference. 02704_ Imp. Target Analyzer temporarily disabled. 02705_ Slammed into S-27 Virus. 02705_ EX Chip 2 destroyed. Map ----- +----------------------------------------------------+ | # """ """ # ###########???????????? | | # # ???????????? | | # # ???????????? | | # # ???????????? | | ############ ???????????? | | ???# ???????????? | | ???# ???????????? | | ???# """""" ???????????? | | ???# """""" ???????????? | | ???# """""" ???????????? | | ???# """""" ##???????????? | | ???# # ???????????? | | ???# # ???????????? | | ???# ############## + ???????????? | | ?#####+###### T ## # ???????????? | | ?# # """ ## # ???????????? | | ?# # """ ##^^^^^# ???????????? | | ?# # """ ## # ???????????? | | ?# # ## ##???????????? | | ?# # """ ## # ???????????? | | ?# #= """ ## # ???????????? | | ?############ """ ## # ???????????? | | ?# #????# ! %[ ## # ???????????? | | ?# ##########+##### ##+#?????????? | | ## %= ??????? | | # c ??????? | | #T t s """ """ ""?????????? | | ## """ """ "??????????? | | ?# """t""" ???????????? | | ?############### ???????????? | | ???????????????# """ """ ????????????? | | ???????????????# """ """ ??????????????? | | ???????????????# """ """ ???????????????? | | ???????????????# ????????????????? | | ???????????????# """ ?"?????????????????? | | ???????????????# """ ???????????????????? | | ???????????????# """????????????????????? | | ???????????????# ?????????????????????? | | ???????????????# ??????????????????????? | | ???????????????+ ?????????????????????? | | ???????????????? ??????????????????????? | | ???????????????? ?????????????????????? | | ???????????????? ??????????????????????? | | ????????????????###??????????????????????? | | ?????????????????????????????????????????? | | ?????????????????????????????????????????? | | ?????????????????????????????????????????? | | ?????????????????????????????????????????? | | ?????????????????????????????????????????? | | ?????????????????????????????????????????? | +----------------------------------------------------+ Best States ------------- Heat Dissipation 40 Energy Generation 23 Energy Capacity 235 Sight Range 16 Terrain Scan Density 10 Resistance: EM 90 Evasion (%) 55 Launcher Accuracy 40 Target Analysis 6 Core Analysis 8 Armor Integrity Analysis 40 Offensive Hacking 70 Defensive Hacking 56 Item Schematics ----------------- None Robot Schematics ------------------ None Fabricated ------------ Nothing Repaired ---------- Nothing Alien Tech Used ----------------- None Achievements -------------- None Challenges ------------ None Polymind | -11 -10 -10 -10 -9 -8 -8 -8 -8 -6 ---------- Run | Yrd Mat Min Exi Min Mat Sto Rec Scr Fac Hosts 2 | . 1 . 1 . . . . . . Combat Hostiles 1 | . 1 . . . . . . . . Allies 1 | . . . 1 . . . . . . Unique Host Classes 2 | . 1 . 1 . . . . . . Average Host Suspicion 53 | . 99 81 . 58 81 94 58 . 33 Unsuspicious Activity 16 | . . . 16 . . . . . . Returns to Shadow . | . . . . . . . . . . Fuzzy Dispatches . | . . . . . . . . . . Protomatter Created 180 | . . 31 . 14 52 83 . . . Used 63 | . 30 . 33 . . . . . . Decayed . | . . . . . . . . . . Highest Spend 33 | . 30 . 33 . . . . . . Top 5 Hosts by Kills: EX-DEC (-10/Exiles: 29) G-47 Trooper (-10/Materials: 7) Game ------ Seed SkeletonCoordinationAutogun Manual? 0 Play Time 00:23:19 Cumulative 154.8 hours Start 2025.05.26 @ 18:36:37 End 2025.05.26 @ 18:59:22 Sessions 1 Manual Loads 0 Difficulty Rogue Special Mode Winter2022/Polymind Game No. 229 Rogue 226 Adventurer 3 Explorer 0 Win Type - Total 1 Types 1/0/0/0/0/0/0/0/0/0 Lore% 44 Gallery% 55 Achievement% 45 Wizard Run 0 Options --------- Layout 0 ASCII 0 Keyboard 0 Movement Mouse Keybinds 0 Fullscreen 2 Font 18/SmallcapsGlow Map View 76x50 Zoom Use 0% Tactical HUD 1 Map Filters NONE Filters NONE Steam 1 RUN: a3502127-1a49-4f08-aba2-2eb713c38197